[Event "71st RUS-ch Higher League 2018"]
[Site "Yaroslavl"]
[Date "2018.06.29"]
[Round "4"]
[White "Vastrukhin, Oleg"]
[Black "Gogolev, Artem"]
[Result "1/2-1/2"]
[ECO "A36"]
[WhiteElo "2420"]
[BlackElo "2407"]
[Annotator "NA"]
[PlyCount "81"]
[EventDate "2018.06.26"]
[EventType "swiss"]
[EventCountry "RUS"]
[SourceTitle "playchess.com"]
[Source "ChessBase"]
[SourceQuality "1"]
[TimeControl "40/5400+30:1800+30"]

1. g3 {[%emt 0:02:46]} g6 {[%emt 0:00:15]} 2. Bg2 {[%emt 0:00:06]} Bg7 {[%emt 0:00:05]} 3. c4 {[%emt 0:00:26]} c5 {[%emt 0:00:10]} 4. Nc3 {[%emt 0:00:04]} Nc6 {[%emt 0:00:08]} 5. e3 {[%emt 0:00:14]} e6 {[%emt 0:02:52]} 6. Nge2 {[%emt 0:00:32]} Nge7 {[%emt 0:00:11]} 7. O-O {[%emt 0:00:22]} O-O {[%emt 0:00:13]} 8. d4 {[%emt 0:02:43]} cxd4 {[%emt 0:00:11]} 9. Nxd4 {[%emt 0:00:48]} Nxd4 {[%emt 0:00:38]} 10. exd4 {[%emt 0:00:06]} d5 {[%emt 0:00:05]} 11. cxd5 {[%emt 0:01:17]} Nxd5 {[%emt 0:00:07]} 12. Qb3 {[%emt 0:01:45]} Bxd4 {[%emt 0:02:10]} 13. Nxd5 {[%emt 0:02:25]} exd5 {[%emt 0:00:59]} 14. Bxd5 {[%emt 0:00:16] A36: Symmetrical English vs ...g6: 4 Bg2 Bg7} (14. Bh6 Bg7 15. Bxg7 Kxg7 16. Qxd5 Qxd5 17. Bxd5 Rd8 18. Rfd1 Rd6 19. Bb3 Rxd1+ 20. Rxd1 Bf5 21. f3 Kf6 22. Kf2 Rc8 23. Ke3 Re8+ 24. Kf2 Rc8 25. Ke3 Re8+ 26. Kf2 {½-½ (26) Ribli,Z (2588)-Hracek,Z (2624) Germany 2011}) 14... Qf6 {[%emt 0:13:53]} 15. h4 $146 {[%emt 0:08:24]} ({Predecessor:} 15. Bh6 Re8 16. Be3 Bxb2 17. Rab1 Be5 18. Qa4 b5 19. Qxb5 Ba6 20. Qa4 Bxf1 21. Bxa8 Rxa8 22. Rxf1 {½-½ (29) Moiseenko,I (2242)-Odnorozhenko,E (2298) Kostroma 2012}) 15... Bh3 {[%emt 0:03:06]} 16. Bg5 {[%emt 0:02:20]} Qf5 {[%emt 0:05:21]} 17. Bg2 {[%emt 0:01:14]} Bxg2 {[%emt 0:01:22]} 18. Kxg2 {[%emt 0:00:05]} Qe4+ {[%emt 0:05:16]} 19. Qf3 {[%emt 0:00:19]} Qxf3+ {[%emt 0:00:57]} 20. Kxf3 {[%emt 0:00:04]} Rac8 {[%emt 0:00:08]} 21. Rfd1 {[%emt 0:00:08]} Bxb2 {[%emt 0:00:30]} 22. Rab1 {[%emt 0:00:04]} Rc2 {[%emt 0:00:18]} 23. Rd2 {[%emt 0:00:04]} Rxd2 {[%emt 0:02:15]} 24. Bxd2 {[%emt 0:00:02]} Bd4 {[%emt 0:00:35]} 25. Rxb7 {[%emt 0:00:06]} Rc8 {[%emt 0:00:53]} 26. Be3 {[%emt 0:05:09]} Bxe3 {[%emt 0:00:05]} 27. fxe3 {[%emt 0:00:04]} a5 {[%emt 0:00:07]} 28. Rb5 {[%emt 0:00:51]} a4 {[%emt 0:00:07]} 29. Rb4 {[%emt 0:00:13]} Ra8 {[%emt 0:01:00]} 30. g4 {[%emt 0:01:41]} a3 {[%emt 0:00:41]} 31. Ke2 {[%emt 0:03:02]} Kg7 {[%emt 0:02:06]} 32. Kd3 {[%emt 0:00:27]} h5 {[%emt 0:06:53]} 33. gxh5 {[%emt 0:06:32]} gxh5 {[%emt 0:01:25]} 34. Rb5 {[%emt 0:02:58]} Kg6 {[%emt 0:00:31]} 35. e4 {[%emt 0:03:10]} f6 {[%emt 0:03:29]} 36. Rb6 {[%emt 0:05:13]} Kf7 {[%emt 0:02:42]} 37. Rb5 {[%emt 0:02:50]} Kg6 $11 {[%emt 0:01:07]} 38. Rb3 {[%emt 0:00:49]} Ra4 {[%emt 0:16:36]} 39. Rb6 {[%emt 0:00:50]} Kf7 {[%emt 0:00:29]} 40. Rb5 {[%emt 0:00:00]} Kg6 {[%emt 0:00:11]} 41. Rb6 {[%emt 0:03:55]} 1/2-1/2

[Event "71st RUS-ch Higher League 2018"]
[Site "Yaroslavl"]
[Date "2018.06.29"]
[Round "4"]
[White "Okrugin, Sergey"]
[Black "Dreev, Aleksey"]
[Result "0-1"]
[ECO "D37"]
[WhiteElo "2334"]
[BlackElo "2657"]
[Annotator "ChessBase"]
[PlyCount "80"]
[EventDate "2018.06.26"]
[EventType "swiss"]
[EventCountry "RUS"]
[SourceTitle "playchess.com"]
[Source "ChessBase"]
[SourceQuality "1"]
[TimeControl "40/5400+30:1800+30"]

1. d4 {[%emt 0:00:00]} Nf6 {[%emt 0:03:46]} 2. c4 {[%emt 0:00:35]} e6 {[%emt 0:00:07]} 3. Nc3 {[%emt 0:02:51]} d5 {[%emt 0:00:37]} 4. Nf3 {[%emt 0:00:25]} Nbd7 {[%emt 0:00:50]} 5. e3 {[%emt 0:02:02]} a6 {[%emt 0:09:03]} 6. b3 {[%emt 0:01:46]} b6 {[%emt 0:00:47]} 7. g3 {[%emt 0:11:56]} Bb7 {[%emt 0:07:10]} 8. Bg2 {[%emt 0:00:35]} Bd6 {[%emt 0:00:23]} 9. O-O {[%emt 0:00:20]} O-O {[%emt 0:00:05]} 10. Bb2 {[%emt 0:01:21]} Qe7 {[%emt 0:02:15]} 11. Qe2 {[%emt 0:04:30]} Rfe8 {[%emt 0:03:26]} 12. Rfd1 {[%emt 0:05:35]} dxc4 {[%emt 0:17:35]} 13. bxc4 {[%emt 0:05:33]} Bb4 {[%emt 0:01:28]} 14. a3 {[%emt 0:18:36]} Ba5 {[%emt 0:00:40]} 15. Nd2 {[%emt 0:00:42]} Bxg2 {[%emt 0:00:36]} 16. Kxg2 {[%emt 0:00:07]} e5 {[%emt 0:01:44]} 17. Nb3 {[%emt 0:03:55]} exd4 {[%emt 0:04:18]} 18. Rxd4 {[%emt 0:00:53]} Bxc3 {[%emt 0:01:12]} 19. Bxc3 {[%emt 0:00:03]} c5 {[%emt 0:00:55]} 20. Rdd1 {[%emt 0:03:26]} h5 {[%emt 0:06:53]} 21. Nd2 {[%emt 0:05:33]} h4 {[%emt 0:03:28]} 22. gxh4 {[%emt 0:05:20]} Ne5 {[%emt 0:03:14]} 23. h3 {[%emt 0:05:15]} Ng6 {[%emt 0:04:16]} 24. Bxf6 {[%emt 0:12:09]} Qxf6 {[%emt 0:00:48]} 25. Kf1 {[%emt 0:01:31]} Nxh4 {[%emt 0:06:10]} 26. Qg4 {[%emt 0:01:27]} Rxe3 {[%emt 0:02:17]} 27. Ne4 {[%emt 0:00:15]} Qf3 {[%emt 0:00:32]} 28. Qxf3 {[%emt 0:00:29]} Rxf3 {[%emt 0:00:04]} 29. a4 {[%emt 0:03:30]} Rxh3 {[%emt 0:02:21]} 30. Ng3 {[%emt 0:01:25]} Ng6 {[%emt 0:09:16]} 31. a5 {[%emt 0:00:44]} bxa5 {[%emt 0:03:08]} 32. Rxa5 {[%emt 0:00:08]} Rh4 {[%emt 0:00:06]} 33. Rxc5 {[%emt 0:01:04]} a5 {[%emt 0:00:08]} 34. Kg2 {[%emt 0:01:13]} Nf4+ {[%emt 0:00:50]} 35. Kf3 {[%emt 0:00:17]} Ne6 {[%emt 0:01:46]} 36. Rh5 {[%emt 0:00:12]} Rf4+ {[%emt 0:01:18]} 37. Ke3 {[%emt 0:01:10]} g6 {[%emt 0:00:09]} 38. Rh6 {[%emt 0:00:21]} Rb8 {[%emt 0:01:49]} 39. Ne4 {[%emt 0:00:18]} Rb3+ {[%emt 0:00:31]} 40. Rd3 {[%emt 0:00:00]} Rxe4+ {[%emt 0:00:24]} 0-1

[Event "71st RUS-ch Higher League 2018"]
[Site "Yaroslavl"]
[Date "2018.06.29"]
[Round "4"]
[White "Bimiev, Ahmad"]
[Black "Predke, Alexandr"]
[Result "0-1"]
[ECO "A20"]
[WhiteElo "2125"]
[BlackElo "2613"]
[Annotator "ChessBase"]
[PlyCount "102"]
[EventDate "2018.06.26"]
[EventType "swiss"]
[EventCountry "RUS"]
[SourceTitle "playchess.com"]
[Source "ChessBase"]
[SourceQuality "1"]
[TimeControl "40/5400+30:1800+30"]

1. c4 {[%emt 0:00:00]} e5 {[%emt 0:01:25]} 2. d3 {[%emt 0:00:00]} Nf6 {[%emt 0:00:42]} 3. Nf3 {[%emt 0:00:00]} Nc6 {[%emt 0:00:10]} 4. a3 {[%emt 0:00:40]} g6 {[%emt 0:02:50]} 5. g3 {[%emt 0:01:30]} Bg7 {[%emt 0:00:05]} 6. Bg2 {[%emt 0:00:06]} O-O {[%emt 0:00:09]} 7. Nc3 {[%emt 0:00:08]} d6 {[%emt 0:01:06]} 8. O-O {[%emt 0:00:20]} h6 {[%emt 0:17:00]} 9. Ne1 {[%emt 0:04:07]} Be6 {[%emt 0:03:37]} 10. Nd5 {[%emt 0:00:20]} Nh7 {[%emt 0:04:06]} 11. Nc2 {[%emt 0:05:09]} Qd7 {[%emt 0:01:14]} 12. b4 {[%emt 0:09:45]} Nd8 {[%emt 0:04:15]} 13. Bb2 {[%emt 0:17:37]} c6 {[%emt 0:01:53]} 14. Nde3 {[%emt 0:00:09]} Bh3 {[%emt 0:06:00]} 15. d4 {[%emt 0:02:04]} Bxg2 {[%emt 0:07:04]} 16. Nxg2 {[%emt 0:01:21]} e4 {[%emt 0:00:12]} 17. Nce3 {[%emt 0:00:24]} Ne6 {[%emt 0:01:39]} 18. Qd2 {[%emt 0:20:40]} d5 {[%emt 0:00:50]} 19. cxd5 {[%emt 0:04:07]} cxd5 {[%emt 0:00:05]} 20. f3 {[%emt 0:01:33]} exf3 {[%emt 0:05:05]} 21. exf3 {[%emt 0:00:10]} Nf6 {[%emt 0:00:39]} 22. Ne1 {[%emt 0:00:34]} h5 {[%emt 0:08:11]} 23. Nd3 {[%emt 0:01:58]} Qd6 {[%emt 0:00:21]} 24. Ne5 {[%emt 0:00:38]} Kh7 {[%emt 0:02:08]} 25. Rae1 {[%emt 0:00:39]} Rac8 {[%emt 0:04:44]} 26. Qd3 {[%emt 0:00:25]} Nd7 {[%emt 0:03:10]} 27. Ng2 {[%emt 0:04:00]} Nxe5 {[%emt 0:10:36]} 28. dxe5 {[%emt 0:00:13]} Qc6 {[%emt 0:00:05]} 29. Rf2 {[%emt 0:03:29]} Qc4 {[%emt 0:04:35]} 30. Qd1 {[%emt 0:00:55]} Ng5 {[%emt 0:01:21]} 31. Nf4 {[%emt 0:00:47]} h4 {[%emt 0:00:02]} 32. Bd4 {[%emt 0:01:11]} Bh6 {[%emt 0:03:07]} 33. Bxa7 {[%emt 0:03:11]} Ra8 {[%emt 0:01:12]} 34. Bc5 {[%emt 0:00:44]} Rfe8 {[%emt 0:00:03]} 35. gxh4 {[%emt 0:04:20]} Qxf4 {[%emt 0:00:30]} 36. hxg5 {[%emt 0:00:12]} Qxg5+ {[%emt 0:02:09]} 37. Rg2 {[%emt 0:00:10]} Qf5 {[%emt 0:00:01]} 38. Qxd5 {[%emt 0:01:23]} Rxa3 {[%emt 0:00:19]} 39. Kf2 {[%emt 0:02:41]} Bf4 {[%emt 0:04:15]} 40. Bd6 {[%emt 0:00:00]} Rc8 {[%emt 0:02:58]} 41. Kg1 {[%emt 0:18:44]} Rc1 {[%emt 0:06:06]} 42. Rxc1 {[%emt 0:02:12]} Bxc1 {[%emt 0:01:29]} 43. Qe4 {[%emt 0:01:33]} Be3+ {[%emt 0:10:42]} 44. Kf1 {[%emt 0:00:06]} Qc8 {[%emt 0:03:37]} 45. Qh4+ {[%emt 0:03:39]} Kg8 {[%emt 0:02:24]} 46. Re2 {[%emt 0:00:16]} Ra1+ {[%emt 0:02:23]} 47. Re1 {[%emt 0:00:08]} g5 {[%emt 0:00:03]} 48. Qg3 {[%emt 0:01:53]} Qc4+ {[%emt 0:00:06]} 49. Kg2 {[%emt 0:00:14]} Ra2+ {[%emt 0:01:02]} 50. Kh1 {[%emt 0:00:32]} Bf4 {[%emt 0:00:11]} 51. Qg1 {[%emt 0:01:33]} Qd3 {[%emt 0:02:27]} 0-1

[Event "71st RUS-ch Higher League 2018"]
[Site "Yaroslavl"]
[Date "2018.06.30"]
[Round "5"]
[White "Sjugirov, Sanan"]
[Black "Potkin, Vladimir"]
[Result "1/2-1/2"]
[ECO "C65"]
[WhiteElo "2663"]
[BlackElo "2592"]
[Annotator "ChessBase"]
[PlyCount "196"]
[EventDate "2018.06.26"]
[EventType "swiss"]
[EventCountry "RUS"]
[SourceTitle "playchess.com"]
[Source "ChessBase"]
[SourceQuality "1"]
[TimeControl "40/5400+30:1800+30"]

1. e4 {[%emt 0:00:00]} e5 {[%emt 0:00:00]} 2. Nf3 {[%emt 0:00:00]} Nc6 {[%emt 0:00:00]} 3. Bb5 {[%emt 0:00:15]} Nf6 {[%emt 0:00:05]} 4. d3 {[%emt 0:00:24]} Bc5 {[%emt 0:00:29]} 5. Bxc6 {[%emt 0:00:31]} dxc6 {[%emt 0:00:10]} 6. Nbd2 {[%emt 0:00:10]} O-O {[%emt 0:01:04]} 7. h3 {[%emt 0:01:12]} Re8 {[%emt 0:02:20]} 8. Nf1 {[%emt 0:05:07]} Nd7 {[%emt 0:04:19]} 9. g4 {[%emt 0:00:18]} Nf8 {[%emt 0:04:54]} 10. Ng3 {[%emt 0:00:25]} Ne6 {[%emt 0:06:42]} 11. Nf5 {[%emt 0:02:22]} Bd6 {[%emt 0:17:00]} 12. Be3 {[%emt 0:06:03]} a5 {[%emt 0:01:25]} 13. h4 {[%emt 0:05:12]} a4 {[%emt 0:03:17]} 14. a3 {[%emt 0:00:26]} c5 {[%emt 0:02:26]} 15. h5 {[%emt 0:07:59]} b5 {[%emt 0:03:15]} 16. Qd2 {[%emt 0:04:38]} Ra6 {[%emt 0:11:27]} 17. Rg1 {[%emt 0:05:51]} Nd4 {[%emt 0:17:03]} 18. N3xd4 {[%emt 0:06:17]} cxd4 {[%emt 0:00:06]} 19. Bg5 {[%emt 0:00:09]} f6 {[%emt 0:01:46]} 20. Bh4 {[%emt 0:00:32]} h6 {[%emt 0:05:26]} 21. Bg3 {[%emt 0:13:41]} Bf8 {[%emt 0:00:52]} 22. f4 {[%emt 0:01:59]} exf4 {[%emt 0:00:47]} 23. Bxf4 {[%emt 0:00:30]} c5 {[%emt 0:00:26]} 24. Kf2 {[%emt 0:02:54]} c4 {[%emt 0:04:10]} 25. Kf3 {[%emt 0:04:57]} Kh7 {[%emt 0:04:16]} 26. Qf2 {[%emt 0:01:45]} b4 {[%emt 0:01:20]} 27. axb4 {[%emt 0:01:24]} Bxb4 {[%emt 0:00:05]} 28. Nxd4 {[%emt 0:12:22]} Bc5 {[%emt 0:01:23]} 29. Be3 {[%emt 0:00:14]} a3 {[%emt 0:01:13]} 30. Nf5 {[%emt 0:08:08]} Bxe3 {[%emt 0:00:45]} 31. Qxe3 {[%emt 0:00:06]} cxd3 {[%emt 0:00:23]} 32. cxd3 {[%emt 0:02:23]} axb2 {[%emt 0:01:31]} 33. Rab1 {[%emt 0:01:05]} Ra3 {[%emt 0:02:19]} 34. Rgd1 {[%emt 0:00:10]} Bxf5 {[%emt 0:01:53]} 35. gxf5 {[%emt 0:00:05]} Rb3 {[%emt 0:00:28]} 36. Rd2 {[%emt 0:01:13]} Qb8 {[%emt 0:00:08]} 37. Qe2 {[%emt 0:03:20]} Rd8 {[%emt 0:01:02]} 38. Kg4 {[%emt 0:00:51]} Qe5 {[%emt 0:01:38]} 39. Qh2 {[%emt 0:02:09]} Qc3 {[%emt 0:00:31]} 40. Rbxb2 {[%emt 0:00:00]} Rxb2 {[%emt 0:00:00]} 41. Rxb2 {[%emt 0:00:46]} Rxd3 {[%emt 0:01:57]} 42. Rc2 {[%emt 0:10:50]} Qe1 {[%emt 0:04:59]} 43. Qg2 {[%emt 0:02:09]} Qe3 {[%emt 0:13:28]} 44. Kh4 {[%emt 0:00:20]} Qe1+ {[%emt 0:01:22]} 45. Kg4 {[%emt 0:00:08]} Rg3+ {[%emt 0:08:45]} 46. Qxg3 {[%emt 0:00:06]} Qxe4+ {[%emt 0:00:03]} 47. Qf4 {[%emt 0:00:13]} Qxc2 {[%emt 0:00:05]} 48. Qf3 {[%emt 0:00:42]} Qh2 {[%emt 0:00:19]} 49. Qg3 {[%emt 0:01:02]} Qd2 {[%emt 0:00:43]} 50. Qf3 {[%emt 0:00:14]} Qd4+ {[%emt 0:00:58]} 51. Kh3 {[%emt 0:00:46]} Qc4 {[%emt 0:00:18]} 52. Kg3 {[%emt 0:00:42]} Qd4 {[%emt 0:00:40]} 53. Kh3 {[%emt 0:00:06]} Qd7 {[%emt 0:00:45]} 54. Kg4 {[%emt 0:00:31]} Qc7 {[%emt 0:01:08]} 55. Qb3 {[%emt 0:01:17]} Qc6 {[%emt 0:00:38]} 56. Qf3 {[%emt 0:00:19]} Qa4+ {[%emt 0:00:28]} 57. Kh3 {[%emt 0:00:14]} Qa1 {[%emt 0:00:58]} 58. Kg3 {[%emt 0:00:38]} Qe1+ {[%emt 0:00:09]} 59. Kh3 {[%emt 0:00:34]} Qe8 {[%emt 0:00:28]} 60. Kg3 {[%emt 0:00:30]} Qb5 {[%emt 0:00:24]} 61. Kg4 {[%emt 0:00:50]} Qe5 {[%emt 0:00:40]} 62. Qd3 {[%emt 0:01:17]} Qh2 {[%emt 0:00:37]} 63. Qg3 {[%emt 0:00:14]} Qb2 {[%emt 0:00:44]} 64. Qf3 {[%emt 0:00:14]} Qd4+ {[%emt 0:00:09]} 65. Kh3 {[%emt 0:00:09]} Qc4 {[%emt 0:00:48]} 66. Kg3 {[%emt 0:02:44]} Qc5 {[%emt 0:00:21]} 67. Qe4 {[%emt 0:05:29]} Qg1+ {[%emt 0:00:47]} 68. Kh3 {[%emt 0:00:36]} Qg5 {[%emt 0:00:33]} 69. Qf3 {[%emt 0:00:11]} Qd2 {[%emt 0:00:30]} 70. Qe4 {[%emt 0:01:06]} Qc1 {[%emt 0:00:34]} 71. Qf3 {[%emt 0:00:35]} Qg5 {[%emt 0:00:23]} 72. Kh2 {[%emt 0:00:21]} Qh4+ {[%emt 0:00:41]} 73. Kg2 {[%emt 0:00:06]} Qd4 {[%emt 0:00:20]} 74. Kh3 {[%emt 0:00:28]} Qc4 {[%emt 0:00:58]} 75. Kg3 {[%emt 0:00:29]} Qc7+ {[%emt 0:01:03]} 76. Qf4 {[%emt 0:00:54]} Qc5 {[%emt 0:00:15]} 77. Qe4 {[%emt 0:00:13]} Qc1 {[%emt 0:00:40]} 78. Qf3 {[%emt 0:00:21]} Qe1+ {[%emt 0:00:11]} 79. Kh3 {[%emt 0:00:24]} Qe5 {[%emt 0:00:07]} 80. Kg4 {[%emt 0:00:37]} Qh2 {[%emt 0:00:32]} 81. Qg3 {[%emt 0:00:16]} Qh1 {[%emt 0:00:30]} 82. Qf3 {[%emt 0:00:24]} Qa1 {[%emt 0:00:57]} 83. Qe4 {[%emt 0:01:22]} Qg1+ {[%emt 0:00:16]} 84. Kh3 {[%emt 0:00:07]} Qd1 {[%emt 0:00:11]} 85. Kh4 {[%emt 0:00:09]} Qd2 {[%emt 0:00:15]} 86. Kh3 {[%emt 0:00:26]} Qc3+ {[%emt 0:01:26]} 87. Kg4 {[%emt 0:00:15]} Qc5 {[%emt 0:00:14]} 88. Kh3 {[%emt 0:01:10]} Qe5 {[%emt 0:00:16]} 89. Qf3 {[%emt 0:00:06]} Kg8 {[%emt 0:00:18]} 90. Qa8+ {[%emt 0:00:23]} Kf7 {[%emt 0:00:06]} 91. Qb7+ {[%emt 0:00:12]} Kf8 {[%emt 0:00:29]} 92. Qa8+ {[%emt 0:00:06]} Ke7 {[%emt 0:00:22]} 93. Qb7+ {[%emt 0:00:07]} Kd6 {[%emt 0:00:36]} 94. Qb6+ {[%emt 0:00:56]} Kd5 {[%emt 0:00:14]} 95. Qb5+ {[%emt 0:00:16]} Kd4 {[%emt 0:00:40]} 96. Qb4+ {[%emt 0:00:30]} Kd3 {[%emt 0:00:29]} 97. Qb1+ {[%emt 0:00:29]} Kd2 {[%emt 0:01:07]} 98. Qa2+ {[%emt 0:00:23]} Ke3 {[%emt 0:00:36]} 1/2-1/2

[Event "71st RUS-ch Higher League 2018"]
[Site "Yaroslavl"]
[Date "2018.06.30"]
[Round "5"]
[White "Dreev, Aleksey"]
[Black "Sakaev, Konstantin"]
[Result "1/2-1/2"]
[ECO "E12"]
[WhiteElo "2657"]
[BlackElo "2580"]
[Annotator "ChessBase"]
[PlyCount "80"]
[EventDate "2018.06.26"]
[EventType "swiss"]
[EventCountry "RUS"]
[SourceTitle "playchess.com"]
[Source "ChessBase"]
[SourceQuality "1"]
[TimeControl "40/5400+30:1800+30"]

1. d4 {[%emt 0:02:13]} Nf6 {[%emt 0:00:00]} 2. Nf3 {[%emt 0:00:22]} e6 {[%emt 0:00:00]} 3. c4 {[%emt 0:00:07]} b6 {[%emt 0:00:00]} 4. a3 {[%emt 0:00:41]} Bb7 {[%emt 0:00:12]} 5. Nc3 {[%emt 0:00:23]} d5 {[%emt 0:00:07]} 6. Bg5 {[%emt 0:00:40]} Be7 {[%emt 0:00:34]} 7. Qa4+ {[%emt 0:00:31]} Bc6 {[%emt 0:00:57]} 8. Qc2 {[%emt 0:03:54]} dxc4 {[%emt 0:00:26]} 9. e3 {[%emt 0:01:10]} b5 {[%emt 0:00:44]} 10. a4 {[%emt 0:00:47]} b4 {[%emt 0:01:00]} 11. Bxf6 {[%emt 0:00:56]} gxf6 {[%emt 0:01:13]} 12. Nb1 {[%emt 0:00:46]} b3 {[%emt 0:15:46]} 13. Qxc4 {[%emt 0:13:31]} Bd5 {[%emt 0:00:30]} 14. Qc1 {[%emt 0:01:50]} c5 {[%emt 0:11:17]} 15. Bb5+ {[%emt 0:12:56]} Nd7 {[%emt 0:11:44]} 16. Qd1 {[%emt 0:05:40]} cxd4 {[%emt 0:07:43]} 17. Qxd4 {[%emt 0:08:32]} a6 {[%emt 0:01:15]} 18. Be2 {[%emt 0:07:19]} Nc5 {[%emt 0:06:02]} 19. Nc3 {[%emt 0:06:56]} Bb7 {[%emt 0:01:20]} 20. O-O {[%emt 0:01:14]} O-O {[%emt 0:03:28]} 21. Rfd1 {[%emt 0:03:21]} Qxd4 {[%emt 0:03:43]} 22. Nxd4 {[%emt 0:00:33]} Rab8 {[%emt 0:01:44]} 23. a5 {[%emt 0:05:54]} Rfc8 {[%emt 0:14:20]} 24. Na4 {[%emt 0:13:59]} Nxa4 {[%emt 0:01:03]} 25. Rxa4 {[%emt 0:00:01]} f5 {[%emt 0:00:06]} 26. Rc4 {[%emt 0:00:18]} Bf6 {[%emt 0:05:05]} 27. Nxb3 {[%emt 0:01:49]} Bxb2 {[%emt 0:00:53]} 28. Rxc8+ {[%emt 0:02:38]} Rxc8 {[%emt 0:00:15]} 29. Bf3 {[%emt 0:00:30]} Bxf3 {[%emt 0:00:37]} 30. gxf3 {[%emt 0:00:01]} Rb8 {[%emt 0:03:46]} 31. Nc5 {[%emt 0:01:08]} Rb5 {[%emt 0:00:05]} 32. Nxa6 {[%emt 0:00:13]} Rxa5 {[%emt 0:00:05]} 33. Nb4 {[%emt 0:00:14]} Ra1 {[%emt 0:00:16]} 34. Rxa1 {[%emt 0:00:11]} Bxa1 {[%emt 0:00:05]} 35. Nd3 {[%emt 0:00:18]} Bc3 {[%emt 0:00:07]} 36. Kg2 {[%emt 0:00:08]} Kg7 {[%emt 0:00:05]} 37. f4 {[%emt 0:00:14]} Bf6 {[%emt 0:00:06]} 38. Kg3 {[%emt 0:00:12]} Be7 {[%emt 0:00:06]} 39. Ne5 {[%emt 0:00:17]} Bf6 {[%emt 0:00:06]} 40. Nd3 {[%emt 0:00:00]} Be7 {[%emt 0:00:00]} 1/2-1/2

[Event "71st RUS-ch Higher League 2018"]
[Site "Yaroslavl"]
[Date "2018.06.30"]
[Round "5"]
[White "Paravyan, David"]
[Black "Zvjaginsev, Vadim"]
[Result "1/2-1/2"]
[ECO "B35"]
[WhiteElo "2634"]
[BlackElo "2633"]
[Annotator "ChessBase"]
[PlyCount "74"]
[EventDate "2018.06.26"]
[EventType "swiss"]
[EventCountry "RUS"]
[SourceTitle "playchess.com"]
[Source "ChessBase"]
[SourceQuality "1"]
[TimeControl "40/5400+30:1800+30"]

1. e4 {[%emt 0:02:05]} c5 {[%emt 0:00:00]} 2. Nf3 {[%emt 0:00:04]} Nc6 {[%emt 0:00:00]} 3. Nc3 {[%emt 0:00:03]} g6 {[%emt 0:00:37]} 4. d4 {[%emt 0:00:05]} cxd4 {[%emt 0:00:05]} 5. Nxd4 {[%emt 0:00:03]} Bg7 {[%emt 0:00:05]} 6. Be3 {[%emt 0:00:03]} Nf6 {[%emt 0:00:11]} 7. Bc4 {[%emt 0:00:05]} d6 {[%emt 0:00:32]} 8. f3 {[%emt 0:00:10]} Na5 {[%emt 0:00:39]} 9. Be2 {[%emt 0:10:55]} Bd7 {[%emt 0:05:58]} 10. Qd2 {[%emt 0:01:14]} Rc8 {[%emt 0:01:18]} 11. Bh6 {[%emt 0:04:10]} Bxh6 {[%emt 0:03:19]} 12. Qxh6 {[%emt 0:00:04]} e5 {[%emt 0:05:31]} 13. Nb3 {[%emt 0:10:14]} Be6 {[%emt 0:16:22]} 14. O-O-O {[%emt 0:01:39]} a6 {[%emt 0:07:03]} 15. Rd2 {[%emt 0:20:38]} b5 {[%emt 0:09:17]} 16. Rhd1 {[%emt 0:03:08]} Nb7 {[%emt 0:01:01]} 17. Kb1 {[%emt 0:05:53]} Qb6 {[%emt 0:07:53]} 18. f4 {[%emt 0:18:19]} Rxc3 {[%emt 0:02:13]} 19. Qg7 {[%emt 0:07:04]} Ke7 {[%emt 0:01:00]} 20. fxe5 {[%emt 0:03:29]} dxe5 {[%emt 0:01:48]} 21. bxc3 {[%emt 0:03:19]} Rg8 {[%emt 0:04:41]} 22. Qh6 {[%emt 0:00:05]} g5 {[%emt 0:01:46]} 23. Bh5 {[%emt 0:00:04]} Qe3 {[%emt 0:04:46]} 24. Rf1 {[%emt 0:04:19]} Nxh5 {[%emt 0:04:30]} 25. Qxh5 {[%emt 0:00:02]} Nd6 {[%emt 0:03:58]} 26. Rd3 {[%emt 0:01:15]} Qxe4 {[%emt 0:01:01]} 27. Nc5 {[%emt 0:00:20]} Qxg2 {[%emt 0:02:46]} 28. Qd1 {[%emt 0:02:22]} Rg6 {[%emt 0:01:50]} 29. Re1 {[%emt 0:01:07]} Nc4 {[%emt 0:01:39]} 30. Nxe6 {[%emt 0:01:27]} Rxe6 {[%emt 0:01:12]} 31. Rd7+ {[%emt 0:00:02]} Kf8 {[%emt 0:00:30]} 32. Rf1 {[%emt 0:00:19]} Re7 {[%emt 0:01:37]} 33. Rd8+ {[%emt 0:00:10]} Re8 {[%emt 0:01:06]} 34. Rd7 {[%emt 0:00:29]} Re7 {[%emt 0:00:07]} 35. Rd8+ {[%emt 0:00:06]} Re8 {[%emt 0:00:01]} 36. Rd7 {[%emt 0:01:10]} Re7 {[%emt 0:00:04]} 37. Rd8+ {[%emt 0:00:03]} Re8 1/2-1/2